bitfinex/quotes_SOLUSD_20250731
["timestamp","ask_amount","ask_price","bid_price","bid_amount"]
[1754004476073,42.27723741,173.1,173.07,5.95766078]
[1754004476273,40.92,173.1,173.09,5.95766078]
[1754004479503,40.92,173.1,173.01,0.57800127]
[1754004479504,26.0,173.06,173.01,0.57800127]
[1754004479667,26.0,172.98,172.86,0.7]
[1754004479860,26.0,172.98,172.84,8.97538238]
[1754004479861,5.95766078,172.89,172.84,8.97538238]
[1754004480071,5.95766078,172.85,172.79,8.97608735]
[1754004480284,5.95766078,172.82,172.77,5.95766078]
[1754004480491,27.31684253,172.89,172.74,26.0]
[1754004480492,0.64723741,172.81,172.74,26.0]
[1754004480681,0.64723741,172.88,172.8,37.91532156]
[1754004480866,27.35723741,172.92,172.87,5.95766078]
[1754004481187,0.71,172.95,172.91,5.95766078]
[1754004481364,0.71,172.95,172.88,0.7]
[1754004481696,0.71,172.95,172.92,5.95766078]
[1754004481858,0.71,172.95,172.94,5.95766078]
[1754004482064,0.71,172.95,172.93,5.95766078]
[1754004482266,47.01766078,172.94,172.89,5.95766078]
[1754004482498,0.71,172.93,172.9,5.95766078]
[1754004482670,0.71,172.92,172.9,5.95766078]
[1754004482866,0.71,172.91,172.89,8.84419782]
[1754004483058,0.71,172.91,172.85,0.7]
[1754004483059,41.77,172.94,172.9,8.84419782]
[1754004483284,0.64723741,172.93,172.92,8.84419782]
[1754004483671,0.64723741,172.96,172.92,9.54419782]
[1754004483872,1.35723741,172.98,172.95,8.84419782]
[1754004484075,0.64723741,172.98,172.97,8.84419782]
[1754004485579,0.64723741,173.0,172.97,8.84419782]
[1754004485781,0.64723741,173.0,172.99,8.84419782]
[1754004486585,0.64723741,173.01,172.99,8.84419782]
[1754004486792,1.34723741,173.01,172.99,8.84419782]
[1754004487092,1.34723741,173.01,173.0,8.84419782]
[1754004487681,1.34723741,173.01,172.98,8.84419782]
[1754004487882,0.7,173.0,172.98,8.84419782]
[1754004488095,0.64723741,172.99,172.98,8.84419782]
[1754004488674,0.64723741,173.01,172.98,8.84419782]
[1754004488864,0.64723741,173.01,173.0,8.84419782]
[1754004489184,1.34723741,173.01,172.99,8.84419782]
[1754004489385,1.34723741,173.01,172.95,6.48174509]
[1754004489588,1.34723741,173.01,172.98,8.84419782]
[1754004489589,0.7,173.0,172.98,8.84419782]
[1754004489891,0.64723741,172.99,172.98,8.84419782]
[1754004490900,26.7,173.02,172.98,8.84419782]
[1754004491084,0.64723741,173.01,172.99,8.84419782]
[1754004491286,1.34723741,173.01,172.99,8.84419782]
[1754004491489,0.64723741,173.03,173.0,8.84419782]
[1754004491795,0.64723741,173.03,173.02,8.84419782]
[1754004492394,0.64723741,173.04,173.02,8.84419782]
[1754004492601,0.64723741,173.04,173.03,8.84419782]
[1754004493098,0.64723741,173.05,173.03,8.84419782]
[1754004493294,0.64723741,173.05,173.04,8.84419782]
[1754004493502,0.64723741,173.07,173.04,8.84419782]
[1754004493699,0.64723741,173.07,173.04,14.62316423]
[1754004495081,0.64723741,173.07,173.04,8.84419782]
[1754004495281,0.64723741,173.07,173.05,8.84419782]
[1754004496012,3.71511731,173.09,173.06,9.54419782]
[1754004496013,0.64723741,173.09,173.06,9.54419782]
[1754004496303,1.34723741,173.12,173.08,8.84419782]
[1754004496599,4.99725914,173.11,173.08,8.84419782]
[1754004496782,0.64723741,173.1,173.08,8.84419782]
[1754004497697,0.7,173.09,173.06,8.84419782]
[1754004497903,0.64723741,173.08,173.07,8.84419782]
[1754004498090,0.64723741,173.09,173.07,8.84419782]
[1754004500616,1.34723741,173.09,173.07,8.84419782]
[1754004501101,0.7,173.08,173.03,5.77907602]
[1754004501404,0.64723741,173.07,173.06,8.84419782]
[1754004501703,0.64723741,173.09,173.06,8.84419782]
[1754004501906,0.64723741,173.08,173.07,8.84419782]
[1754004503004,1.34723741,173.08,173.01,16.78468397]
[1754004503182,1.34723741,173.08,173.04,8.84419782]
[1754004503595,0.7,173.07,173.04,8.84419782]
[1754004503897,0.64723741,173.06,173.05,8.84419782]
[1754004504288,0.64723741,173.08,173.05,8.84419782]
[1754004504490,1.34723741,173.08,173.05,8.84419782]
[1754004504687,0.64723741,173.08,173.05,8.84419782]
[1754004504889,0.7,173.07,173.05,8.84419782]
[1754004505118,0.64723741,173.06,173.05,8.84419782]
[1754004505502,1.34723741,173.09,173.05,8.84419782]
[1754004505707,0.7,173.08,173.05,8.84419782]
[1754004505899,0.64723741,173.07,173.05,8.84419782]
[1754004506497,157.14419782,173.06,172.99,6.48062199]
[1754004506688,0.64723741,173.05,173.02,8.84419782]
[1754004507009,1.34723741,173.05,173.02,8.84419782]
[1754004509708,8.84419782,173.03,172.98,8.84419782]
[1754004509909,0.64723741,173.02,173.0,8.84419782]
[1754004510617,0.64723741,173.02,172.99,8.84419782]
[1754004510816,0.64723741,173.03,172.99,8.84419782]
[1754004511002,0.64723741,173.03,173.0,8.84419782]
[1754004511406,0.64723741,173.03,173.0,9.54419782]
[1754004512490,188.58,173.04,173.02,8.84419782]
[1754004512491,147.6,173.04,173.02,8.84419782]
[1754004512696,147.6,173.04,173.03,8.84419782]
[1754004514891,147.6,173.06,173.03,8.84419782]
[1754004515093,0.64723741,173.05,173.03,8.84419782]
[1754004517513,0.64723741,173.05,173.01,0.71]
[1754004517813,0.64723741,173.05,173.03,8.84419782]
[1754004518816,0.64723741,173.05,173.0,5.96037583]
[1754004519022,6.68037583,173.04,172.99,5.96037583]
[1754004519225,0.64723741,173.03,172.99,5.96037583]
[1754004519534,0.64723741,173.03,173.0,5.96037583]
[1754004520022,0.64723741,173.03,173.02,5.96037583]
[1754004520207,0.64723741,173.04,173.02,5.96037583]
[1754004520525,0.64723741,173.04,173.01,6.67037583]
[1754004521219,0.64723741,173.04,173.01,0.71]
[1754004521524,0.64723741,173.04,173.01,6.67037583]
[1754004522018,0.64723741,173.04,173.02,6.67037583]
[1754004523439,41.56723741,173.05,173.03,5.96037583]
[1754004523723,0.64723741,173.05,173.04,5.96037583]
[1754004523934,0.64723741,173.05,173.03,6.67037583]
[1754004524218,0.64723741,173.05,173.03,0.71]
[1754004524417,0.64723741,173.05,173.03,5.96037583]
[1754004526128,0.64723741,173.05,173.03,6.67037583]
[1754004526319,0.64723741,173.05,173.03,5.96037583]
[1754004526812,0.64723741,173.05,173.03,6.67037583]
[1754004527927,0.64723741,173.05,172.99,0.71]
[1754004528119,0.64723741,173.05,172.99,5.96037583]
[1754004528120,158.596764,173.04,172.99,5.96037583]
[1754004528336,10.00489633,173.03,172.99,5.96037583]
[1754004528498,4.31638817,173.02,173.0,5.96037583]
[1754004528704,42.26723741,173.03,173.0,5.96037583]
[1754004529004,4.32149033,173.02,173.01,5.96037583]
[1754004529213,0.64723741,173.03,173.01,5.96037583]
[1754004529811,4.32238825,173.02,173.01,5.96037583]
[1754004530029,0.64723741,173.03,173.01,6.67037583]
[1754004530241,4.32374234,173.02,173.01,5.96037583]
[1754004530648,5.04374234,173.02,173.0,5.96037583]
[1754004530849,4.32374234,173.01,173.0,5.96037583]
[1754004531050,0.72,173.02,173.0,5.96037583]
[1754004531358,4.32400844,173.01,172.94,26.0]
[1754004531523,4.32400844,173.0,172.97,5.96037583]
[1754004531718,4.97124585,172.99,172.96,5.96037583]
[1754004532052,5.04509716,172.98,172.94,5.96037583]
[1754004532233,4.97233457,172.97,172.94,5.96037583]
[1754004532434,1.36723741,172.98,172.95,5.96037583]
[1754004532636,0.64723741,172.98,172.94,0.71]
[1754004532840,0.64723741,172.98,172.96,5.96037583]
[1754004533223,41.56723741,172.99,172.97,5.96037583]
[1754004533438,4.32469047,172.98,172.97,5.96037583]
[1754004534249,4.32431005,172.98,172.96,5.96037583]
[1754004534450,0.64723741,173.0,172.97,6.67037583]
[1754004534749,4.32422496,172.99,172.98,5.96037583]
[1754004535059,51.92460079,172.99,172.89,0.71]
[1754004535355,15.9762844,172.98,172.93,5.96037583]
[1754004535529,45.40422496,172.97,172.93,5.96037583]
[1754004535731,4.97146237,172.96,172.93,5.96037583]
[1754004535926,0.64723741,172.96,172.93,5.96037583]
[1754004536151,0.64723741,172.96,172.94,5.96037583]
[1754004536360,41.72723741,172.97,172.95,5.96037583]
[1754004536654,0.64723741,172.96,172.89,5.96037583]
[1754004536829,0.64723741,172.96,172.93,5.96037583]
[1754004537149,1.36723741,172.96,172.93,5.96037583]
[1754004537727,1.36723741,172.96,172.9,0.71]
[1754004537728,1.36723741,172.96,172.9,17.49468397]
[1754004537926,0.64723741,172.96,172.93,5.96037583]
[1754004538134,0.64723741,172.96,172.94,5.96037583]
[1754004539572,1.36723741,172.96,172.94,5.96037583]
[1754004539731,0.64723741,172.96,172.94,5.96037583]
[1754004540752,41.08,172.97,172.95,6.67037583]
[1754004541051,41.08,172.97,172.96,5.96037583]
[1754004541665,188.68,172.97,172.96,5.96037583]
[1754004541862,188.68,172.97,172.95,5.96037583]
[1754004542160,188.68,172.97,172.93,0.71]
[1754004542161,0.64723741,172.96,172.93,0.71]
[1754004542353,0.64723741,172.96,172.94,5.96037583]
[1754004543565,0.64723741,172.96,172.95,5.96037583]
[1754004545675,188.68,172.97,172.95,6.63037583]
[1754004545972,188.68,172.97,172.96,5.96037583]
[1754004547043,147.6,172.97,172.96,5.96037583]
[1754004547866,148.29,172.97,172.93,0.67]
[1754004548063,148.29,172.97,172.95,5.96037583]
[1754004548251,148.29,172.97,172.96,5.96037583]
[1754004548252,147.6,172.97,172.96,5.96037583]
[1754004548750,188.58,173.01,172.96,6.63037583]
[1754004549057,0.64723741,173.0,172.99,5.96037583]
[1754004549260,1.33723741,173.0,172.98,5.96037583]
[1754004552076,5.00600887,172.99,172.95,5.96037583]
[1754004552241,41.62723741,172.98,172.94,5.96037583]
[1754004552440,0.69,172.97,172.94,5.96037583]
[1754004552640,0.69,172.97,172.95,5.96037583]
[1754004552947,1.33723741,172.96,172.94,5.96037583]
[1754004554469,0.64723741,172.96,172.94,5.96037583]
[1754004554646,0.64723741,172.97,172.94,5.96037583]
[1754004554842,0.64723741,172.97,172.95,5.96037583]
[1754004555252,1.33723741,172.97,172.95,5.96037583]
[1754004555454,1.33723741,172.97,172.92,0.67]
[1754004555648,0.69,172.96,172.92,0.67]
[1754004555855,1.33723741,172.96,172.94,5.96037583]
[1754004556960,0.64723741,172.96,172.94,6.63037583]
[1754004557164,0.64723741,172.96,172.95,5.96037583]
[1754004557473,1.33723741,172.96,172.94,5.96037583]
[1754004558166,0.69,172.95,172.84,14.46378978]
[1754004558370,0.64723741,172.94,172.91,5.96037583]
[1754004558662,148.29,172.93,172.89,5.96037583]
[1754004558839,1.33723741,172.92,172.9,5.96037583]
[1754004559640,0.64723741,172.92,172.9,5.96037583]
[1754004559840,0.64723741,172.92,172.91,5.96037583]
[1754004560074,147.6,172.93,172.91,5.96037583]
[1754004560459,0.64723741,172.92,172.91,5.96037583]
[1754004560957,147.6,172.93,172.91,5.96037583]
[1754004561149,147.6,172.93,172.86,31.78493519]
[1754004561455,0.64723741,172.92,172.9,5.96037583]
[1754004561647,0.69,172.91,172.89,5.96037583]
[1754004561854,0.64723741,172.92,172.89,5.96037583]
[1754004562253,0.64723741,172.92,172.87,0.67]
[1754004562254,1.33723741,172.92,172.87,0.67]
[1754004562443,1.33723741,172.92,172.9,5.96037583]
[1754004562644,0.64723741,172.92,172.91,5.96037583]
[1754004562869,147.6,172.93,172.91,5.96037583]
[1754004563079,147.6,172.93,172.92,5.96037583]
[1754004565062,40.92,172.96,172.92,6.63037583]
[1754004565258,0.64723741,172.95,172.92,0.67]
[1754004565459,0.69,172.94,172.89,26.0]
[1754004565656,0.64723741,172.93,172.92,5.96037583]
[1754004566173,0.64723741,172.93,172.89,26.67]
[1754004566486,0.64723741,172.93,172.92,5.96037583]
[1754004567765,0.64723741,172.94,172.92,5.96037583]
[1754004568170,0.64723741,172.94,172.93,5.96037583]
[1754004568476,0.64723741,172.94,172.92,5.96037583]
[1754004568477,1.33723741,172.94,172.92,5.96037583]
[1754004568683,0.69,172.93,172.91,5.96037583]
[1754004568887,0.64723741,172.94,172.89,0.67]
[1754004569068,0.69,172.93,172.91,5.96037583]
[1754004569389,1.33723741,172.92,172.9,5.96037583]
[1754004569762,0.64723741,172.92,172.91,5.96037583]
[1754004569970,0.69,172.94,172.91,5.96037583]
[1754004569971,1.33723741,172.94,172.91,5.96037583]
[1754004570155,1.33723741,172.94,172.92,5.96037583]
[1754004571763,0.64723741,172.94,172.86,16.78468397]
[1754004572081,147.6,172.93,172.91,5.96037583]
[1754004572272,0.64723741,172.92,172.91,5.96037583]
[1754004573578,1.33723741,172.92,172.89,5.96037583]
[1754004573761,0.69,172.91,172.88,5.96037583]
[1754004574075,1.33723741,172.9,172.88,5.96037583]
[1754004574475,1.33723741,172.9,172.85,0.67]
[1754004574675,0.66,172.89,172.87,5.96037583]
[1754004574860,0.66,172.88,172.87,5.96037583]
[1754004575060,0.64723741,172.9,172.87,5.96037583]
[1754004575061,1.30723741,172.9,172.87,5.96037583]
[1754004575265,0.64723741,172.9,172.87,5.96037583]
[1754004575463,0.66,172.89,172.87,5.96037583]
[1754004575863,11.59069424,172.88,172.83,5.96037583]
[1754004576059,148.26,172.87,172.81,0.67]
[1754004576380,0.64723741,172.86,172.84,5.96037583]
[1754004577381,147.6,172.87,172.85,5.96037583]
[1754004577586,0.64723741,172.86,172.85,5.96037583]
[1754004577881,1.30723741,172.86,172.83,5.96037583]
[1754004578089,0.66,172.85,172.82,5.96037583]
[1754004578283,0.64723741,172.84,172.79,0.67]
[1754004578485,0.64723741,172.84,172.82,5.96037583]
[1754004578862,0.64723741,172.84,172.8,0.67]
[1754004579178,0.64723741,172.84,172.82,5.96037583]
[1754004579367,1.30723741,172.84,172.81,5.96037583]
[1754004579589,0.66,172.83,172.81,5.96037583]
[1754004579814,148.90723741,172.82,172.71,17.385761]
[1754004579955,148.26,172.81,172.77,5.96037583]
[1754004580155,0.64723741,172.8,172.79,5.96037583]
[1754004580989,0.64723741,172.8,172.77,5.96037583]
[1754004580990,1.30723741,172.8,172.77,5.96037583]
[1754004581201,1.30723741,172.8,172.74,17.45468397]
[1754004581202,0.66,172.79,172.74,16.78468397]
[1754004581362,1.30723741,172.78,172.75,5.96037583]
[1754004581687,0.66,172.77,172.74,5.96037583]
[1754004581868,0.64723741,172.76,172.74,5.96037583]
[1754004582071,0.64723741,172.76,172.72,41.61]
[1754004582286,0.66,172.77,172.75,5.96037583]
[1754004582780,0.64723741,172.78,172.75,5.96037583]
[1754004582999,1.30723741,172.78,172.75,5.96037583]
[1754004584169,4.25693606,172.78,172.75,5.96037583]
[1754004584486,0.66,172.77,172.75,5.96037583]
[1754004584658,0.64723741,172.76,172.75,5.96037583]
[1754004585080,41.6,172.79,172.75,5.96037583]
[1754004585081,0.64723741,172.78,172.75,5.96037583]
[1754004585385,0.64723741,172.78,172.76,5.96037583]
[1754004585562,0.66,172.77,172.75,5.96037583]
[1754004585759,0.64723741,172.76,172.75,5.96037583]
[1754004587484,0.64723741,172.76,172.72,41.61]
[1754004587485,0.64723741,172.76,172.72,40.94]
[1754004587676,1.30723741,172.77,172.75,5.96037583]
[1754004588067,1.30723741,172.77,172.73,0.67]
[1754004588265,0.66,172.76,172.75,5.96037583]
[1754004588467,0.64723741,172.77,172.75,5.96037583]
[1754004588686,221.18037583,172.76,172.64,17.399878]
[1754004588866,148.90723741,172.75,172.69,145.96037583]
[1754004589067,0.66,172.74,172.7,5.96037583]
[1754004589270,153.56037583,172.75,172.7,5.96037583]
[1754004589271,1.30723741,172.73,172.7,5.96037583]
[1754004590765,0.64723741,172.73,172.71,5.96037583]
[1754004590971,0.64723741,172.74,172.71,5.96037583]
[1754004591186,0.64723741,172.74,172.7,0.67]
[1754004591371,0.64723741,172.74,172.71,5.96037583]
[1754004591572,1.30723741,172.74,172.71,5.96037583]
[1754004591875,0.64723741,172.74,172.71,5.96037583]
[1754004592200,0.64723741,172.74,172.73,5.96037583]
[1754004592570,0.64723741,172.74,172.69,140.0]
[1754004592890,0.64723741,172.74,172.73,5.96037583]
[1754004593091,0.64723741,172.74,172.72,5.96037583]
[1754004593291,1.30723741,172.74,172.71,5.96037583]
[1754004593684,1.30723741,172.74,172.72,5.96037583]
[1754004594014,0.64723741,172.74,172.73,5.96037583]
[1754004594869,0.64723741,172.74,172.72,5.96037583]
[1754004595284,147.6,172.75,172.73,5.96037583]
[1754004595486,0.64723741,172.74,172.73,5.96037583]
[1754004595792,1.30723741,172.74,172.72,5.96037583]
[1754004595969,1.30723741,172.74,172.71,5.96037583]
[1754004596174,0.66,172.73,172.7,5.96037583]
[1754004596385,1.30723741,172.72,172.69,140.0]
[1754004596585,0.66,172.71,172.69,145.96037583]
[1754004597078,1.30723741,172.72,172.69,140.0]
[1754004597273,0.64723741,172.72,172.69,145.96037583]
[1754004597478,1.30723741,172.72,172.69,145.96037583]
[1754004598286,0.64723741,172.72,172.71,5.96037583]
[1754004598880,0.64723741,172.72,172.7,5.96037583]
[1754004599787,0.64723741,172.72,172.71,5.96037583]
[1754004600186,147.6,172.73,172.71,6.63037583]
[1754004600384,147.6,172.73,172.72,6.63037583]
[1754004600777,147.6,172.77,172.72,6.63037583]
[1754004600983,148.90723741,172.76,172.74,5.96037583]
[1754004601183,147.6,172.76,172.74,5.96037583]
[1754004601388,148.26,172.76,172.74,5.96037583]
[1754004601589,148.26,172.76,172.69,140.0]
[1754004601590,47.60037583,172.75,172.7,5.96037583]
[1754004601785,1.30723741,172.74,172.7,5.96037583]
[1754004602000,0.64723741,172.74,172.72,5.96037583]
[1754004602399,41.62723741,172.75,172.73,5.96037583]
[1754004602610,41.62723741,172.75,172.74,5.96037583]
[1754004602777,42.28723741,172.75,172.72,5.96037583]
[1754004602986,0.66,172.74,172.72,5.96037583]
[1754004603199,1.30723741,172.74,172.73,5.96037583]
[1754004603393,0.66,172.73,172.7,5.96037583]
[1754004603606,1.30723741,172.72,172.69,145.96037583]
[1754004604400,0.66,172.71,172.69,145.96037583]
[1754004604792,0.66,172.7,172.69,145.96037583]
[1754004605120,14.56020458,172.7,172.69,67.22048029]
[1754004605349,62.40156857,172.7,172.69,67.22048029]
[1754004605520,33.13791154,172.7,172.69,67.22048029]
[1754004605706,11.45099896,172.7,172.69,67.22048029]
[1754004606036,52.69099896,172.7,172.69,67.22048029]
[1754004606340,73.74490224,172.7,172.69,67.22048029]
[1754004606693,15.72021827,172.7,172.69,67.22048029]
[1754004607025,56.98021827,172.7,172.69,67.22048029]
[1754004607198,52.71099896,172.7,172.69,67.22048029]
[1754004607394,73.76326289,172.7,172.69,67.22048029]
[1754004607705,56.97857892,172.7,172.69,67.22048029]
[1754004607892,4.92062313,172.7,172.69,67.22048029]
[1754004608094,41.94723741,172.7,172.69,67.22048029]
[1754004608522,41.94723741,172.7,172.69,73.84085612]
[1754004608727,0.64723741,172.74,172.69,73.84085612]
[1754004608916,45.58756721,172.73,172.7,5.96037583]
[1754004609124,4.91480462,172.72,172.71,5.96037583]
[1754004609503,4.91480462,172.72,172.7,5.96037583]
[1754004609818,0.64723741,172.72,172.7,5.96037583]
[1754004610024,4.26707425,172.71,172.7,5.96037583]
[1754004610324,4.26707425,172.71,172.69,67.22048029]
[1754004610325,52.11745008,172.71,172.69,67.22048029]
[1754004610524,10.87468749,172.7,172.69,67.22048029]
[1754004610820,11.44468749,172.7,172.69,67.22048029]
[1754004611602,15.71203569,172.7,172.69,67.22048029]
[1754004612240,30.91431166,172.7,172.69,67.22048029]
[1754004612934,36.87468749,172.7,172.69,67.22048029]
[1754004613108,41.14351922,172.7,172.69,67.22048029]
[1754004615624,35.18314339,172.7,172.69,67.22048029]
[1754004615827,30.91431166,172.7,172.69,67.88048029]
[1754004616036,72.25431166,172.7,172.69,67.88048029]
[1754004616204,73.94761324,172.7,172.69,67.22048029]
[1754004616411,82.50070888,172.7,172.69,67.22048029]
[1754004616614,76.54033305,172.7,172.69,67.22048029]
[1754004616920,82.50070888,172.7,172.69,67.22048029]
[1754004617629,83.07070888,172.7,172.69,67.22048029]
[1754004618202,82.50070888,172.7,172.69,67.22048029]
[1754004620430,76.54033305,172.7,172.69,67.22048029]
[1754004622036,89.37543235,172.7,172.69,67.22048029]
[1754004622548,63.37543235,172.7,172.69,67.22048029]
[1754004623607,80.73011632,172.7,172.69,67.22048029]
[1754004624237,82.87518279,172.7,172.69,67.22048029]
[1754004624444,90.56927353,172.7,172.69,67.22048029]
[1754004625007,42.78468397,172.66,172.62,3.20270243]
[1754004625319,31.96037583,172.63,172.62,3.20270243]
[1754004625511,73.18815544,172.63,172.62,3.20270243]
[1754004625716,83.00825168,172.63,172.62,3.20270243]
[1754004625931,5.96037583,172.58,172.57,40.0]
[1754004626248,49.87309564,172.58,172.57,40.0]
[1754004626551,73.18815544,172.58,172.57,40.0]
[1754004626920,72.61815544,172.58,172.57,40.0]
[1754004627250,73.83539285,172.58,172.57,40.0]
[1754004627541,73.26539285,172.58,172.57,40.0]
[1754004628337,73.83539285,172.58,172.57,40.0]
[1754004628514,77.68647219,172.58,172.57,40.0]
[1754004628715,73.83539285,172.58,172.57,40.0]
[1754004628916,32.51539285,172.58,172.57,40.0]
[1754004629116,37.27962482,172.58,172.57,40.0]
[1754004629341,78.63962482,172.58,172.57,40.0]
[1754004631156,78.04962482,172.58,172.57,40.0]
[1754004631523,78.61962482,172.58,172.57,40.0]
[1754004631919,78.61718783,172.58,172.57,40.0]
[1754004632633,78.04718783,172.58,172.57,40.0]
[1754004633352,13.96212803,172.58,172.57,40.66]
[1754004633523,50.53789606,172.58,172.57,46.62037583]
[1754004633716,20.44943483,172.63,172.57,46.62037583]
[1754004633717,17.424132,172.63,172.57,40.66]
[1754004633922,17.424132,172.63,172.62,5.96037583]
[1754004634142,41.38,172.64,172.57,81.38]
[1754004634443,20.43340291,172.7,172.58,16.78468397]
[1754004634617,45.65911693,172.69,172.58,16.78468397]
[1754004634823,4.27911693,172.68,172.57,81.38]
[1754004635036,26.0,172.64,172.57,40.0]
[1754004635338,8.87190565,172.61,172.57,40.0]
[1754004635527,41.42,172.6,172.57,40.0]
[1754004635949,50.29190565,172.6,172.57,40.0]
[1754004636156,26.0,172.58,172.57,40.0]
[1754004636362,67.44,172.58,172.57,40.0]
[1754004636725,67.44,172.58,172.57,48.87190565]
[1754004636955,41.44,172.58,172.57,48.87190565]
[1754004638742,41.44,172.58,172.57,40.0]
[1754004638947,41.44,172.58,172.57,48.87190565]
[1754004640360,41.44,172.58,172.57,40.0]
[1754004640655,41.44,172.58,172.57,48.87190565]
[1754004640959,26.0,172.61,172.57,48.87190565]
[1754004641269,41.42,172.6,172.57,40.0]
[1754004642435,41.42,172.6,172.59,8.87190565]
[1754004643470,42.09,172.6,172.57,40.0]
[1754004643771,26.0,172.58,172.57,40.0]
[1754004644068,68.07,172.58,172.57,40.0]
[1754004648050,76.94190565,172.58,172.57,40.0]
[1754004648245,93.72658962,172.58,172.57,40.0]
[1754004648452,102.31120448,172.58,172.57,39.28]
[1754004652663,44.12652051,172.58,172.57,39.28]
[1754004652864,75.94461486,172.58,172.57,39.28]
[1754004653057,8.87190565,172.6,172.57,39.28]
[1754004653367,8.87190565,172.58,172.57,39.28]
[1754004653566,34.90690331,172.58,172.57,39.28]
[1754004657664,54.52172385,172.58,172.57,39.28]
[1754004657841,4.2898182,172.58,172.57,39.28]
[1754004658045,45.6698182,172.58,172.57,39.28]
[1754004658247,58.83929145,172.58,172.57,39.28]
[1754004659072,49.9673858,172.58,172.57,39.28]
[1754004659286,58.808181,172.58,172.57,39.28]
[1754004659475,41.38,172.58,172.57,39.28]
[1754004659675,45.67530853,172.58,172.57,39.28]
[1754004659854,54.54721418,172.58,172.57,39.28]
[1754004660059,58.84232535,172.58,172.57,39.28]
[1754004660365,45.67530853,172.58,172.57,39.28]
[1754004660565,54.54721418,172.58,172.57,39.28]
[1754004661361,41.38,172.58,172.57,39.28]
[1754004661652,50.25190565,172.58,172.57,39.28]
[1754004662059,41.38,172.58,172.57,39.28]
[1754004662354,67.38,172.58,172.57,39.28]
[1754004662554,67.38,172.58,172.57,39.94]
[1754004662860,67.38,172.58,172.57,39.28]
[1754004663174,69.12739313,172.58,172.57,39.28]
[1754004663482,73.42643236,172.58,172.57,39.28]
[1754004663665,76.44013514,172.58,172.57,39.28]
[1754004664480,3.01370278,172.58,172.57,39.28]
[1754004664782,8.87718868,172.63,172.57,48.81718868]
[1754004664982,29.01291713,172.59,172.57,48.81718868]
[1754004665159,41.4,172.58,172.57,39.28]
[1754004665358,41.4,172.58,172.57,48.15718868]
[1754004665755,41.4,172.58,172.57,48.81718868]
[1754004668254,41.4,172.58,172.57,39.28]
[1754004669369,41.4,172.58,172.57,48.81718868]
[1754004669578,41.4,172.58,172.57,48.15718868]
[1754004669966,41.4,172.58,172.57,39.28]
[1754004670888,67.38,172.58,172.57,48.81718868]
[1754004671463,67.38,172.58,172.57,39.28]
[1754004672089,81.27409924,172.58,172.57,39.28]
[1754004672578,30.30691056,172.58,172.57,39.28]
[1754004672785,81.27409924,172.58,172.57,39.28]
[1754004672991,93.75187265,172.58,172.57,39.28]
[1754004673169,102.36506735,172.58,172.57,39.28]
[1754004673372,106.24247899,172.58,172.57,39.28]
[1754004676085,106.24484653,172.58,172.57,39.28]
[1754004676993,117.19718868,172.56,172.55,30.0]
[1754004677163,167.86275092,172.56,172.55,30.0]
[1754004680484,78.32,172.54,172.51,0.2003]
[1754004680684,119.64,172.53,172.51,0.2003]
[1754004680890,41.4,172.52,172.51,0.2003]
[1754004681193,3.02539988,172.6,172.51,9.07748868]
[1754004681370,50.01918568,172.59,172.54,8.87718868]
[1754004681565,45.72959284,172.58,172.55,9.53718868]
[1754004681781,3.01278186,172.61,172.51,0.2003]
[1754004681782,3.01278186,172.61,172.56,0.66]
[1754004681978,34.87718868,172.57,172.53,0.66]
[1754004682171,34.87718868,172.57,172.51,0.2003]
[1754004682172,41.44,172.56,172.54,0.66]
[1754004682377,26.0,172.56,172.55,9.53718868]
[1754004682588,67.44,172.56,172.55,9.53718868]
[1754004682900,67.44,172.56,172.51,0.2003]
[1754004683085,8.87718868,172.55,172.51,0.2003]
[1754004683286,26.0,172.52,172.51,0.2003]
[1754004683487,67.46,172.52,172.51,0.2003]
[1754004684489,76.33718868,172.52,172.51,0.2003]
[1754004684676,79.17314385,172.52,172.51,0.2003]
[1754004686002,70.29595517,172.52,172.51,0.2003]
[1754004686797,2.83595517,172.52,172.51,9.73748868]
[1754004687000,41.48,172.52,172.51,9.73748868]
[1754004687494,2.93328687,172.52,172.51,9.73748868]
[1754004687701,41.48,172.53,172.51,0.2003]
[1754004688790,41.48,172.53,172.51,0.8603]
[1754004689379,41.48,172.53,172.51,9.73748868]
[1754004689997,3.01327346,172.56,172.52,9.53718868]